fUSD/lending_fUSD_20250513
["ID","MTS","AMOUNT","RATE_DAILY","PERIOD"]
[360911637,1747141564828,-400.0,0.00010998,2]
[360911638,1747141564862,-505.94,0.00010998,2]
[360911639,1747141564897,-1857.57,0.00010998,2]
[360911640,1747141564928,-400.0,0.00010998,2]
[360911641,1747141564959,-400.0,0.00010998,2]
[360911642,1747141564989,-400.0,0.00010998,2]
[360911643,1747141565018,-400.0,0.00010998,2]
[360911644,1747141565048,-400.0,0.00010998,2]
[360911645,1747141565078,-400.0,0.00010998,2]
[360911646,1747141565108,-433.02718372,0.00010998,2]
[360911647,1747141565139,-661.27,0.00010998,2]
[360911648,1747141565168,-216.04053363,0.00010998,2]
[360911649,1747141565198,-400.0,0.00010998,2]
[360911650,1747141565229,-229.43032918,0.00010998,2]
[360911651,1747141565260,-400.0,0.00010998,2]
[360911652,1747141565291,-268.51137919,0.00010998,2]
[360911653,1747141565319,-244.01958535,0.00010998,2]
[360911654,1747141565348,-400.0,0.00010998,2]
[360911655,1747141565379,-400.0,0.00010998,2]
[360911656,1747141565408,-336.55391304,0.00010998,2]
[360911657,1747141565438,-400.0,0.00010998,2]
[360911658,1747141565467,-165.74895291,0.00010998,2]
[360911659,1747141565497,-400.0,0.00010998,2]
[360911660,1747141565527,-400.0,0.00010998,2]
[360911661,1747141565560,-1483.71,0.00010998,2]
[360911662,1747141565591,-400.0,0.00010998,2]
[360911663,1747141565620,-233.13498201,0.00010998,2]
[360911664,1747141565653,-400.0,0.00010998,2]
[360911665,1747141565684,-400.0,0.00010998,2]
[360911666,1747141565715,-400.0,0.00010998,2]
[360911667,1747141565745,-400.0,0.00010998,2]
[360911668,1747141565775,-400.0,0.00010998,2]
[360911669,1747141565805,-267.94366166,0.00010998,2]
[360911670,1747141565836,-442.92,0.00010998,2]
[360911671,1747141565866,-400.0,0.00010998,2]
[360911672,1747141565898,-400.0,0.00010998,2]
[360911673,1747141565929,-400.0,0.00010998,2]
[360911674,1747141565961,-400.0,0.00010998,2]
[360911675,1747141565991,-400.0,0.00010998,2]
[360911676,1747141566022,-400.0,0.00010998,2]
[360911677,1747141566053,-400.0,0.00010998,2]
[360911678,1747141566083,-400.0,0.00010998,2]
[360911679,1747141566113,-585.64,0.00010998,2]
[360911680,1747141566148,-400.0,0.00010998,2]
[360911681,1747141566179,-2272.11,0.00010998,2]
[360911682,1747141566211,-343.04746918,0.00010998,2]
[360911683,1747141566243,-400.0,0.00010998,2]
[360911684,1747141566274,-4757.86,0.00010998,2]
[360911685,1747141566308,-25269.66,0.00010998,2]
[360911686,1747141566338,-400.0,0.00010998,2]
[360911687,1747141566370,-400.0,0.00010998,2]
[360911688,1747141566402,-400.0,0.00010998,2]
[360911689,1747141566431,-400.0,0.00010998,2]
[360911690,1747141566461,-400.0,0.00010998,2]
[360911691,1747141566492,-1464.41,0.00010998,2]
[360911692,1747141566524,-400.0,0.00010998,2]
[360911693,1747141566556,-400.0,0.00010998,2]
[360911694,1747141566587,-400.0,0.00010998,2]
[360911695,1747141566618,-400.0,0.00010998,2]
[360911696,1747141566796,-474.56,0.00010998,2]
[360911697,1747141566827,-1495.98,0.00010998,2]
[360911698,1747141566857,-367.17348829,0.00010998,2]
[360911699,1747141566886,-400.0,0.00010998,2]
[360911700,1747141566916,-451.19309214,0.00010998,2]
[360911701,1747141566945,-1518.51,0.00010998,2]
[360911702,1747141566975,-400.0,0.00010998,2]
[360911703,1747141567005,-400.0,0.00010998,2]
[360911704,1747141567033,-400.0,0.00010998,2]
[360911705,1747141567062,-400.0,0.00010998,2]
[360911706,1747141567090,-163.00918605,0.00010998,2]
[360911707,1747141567118,-400.0,0.00010998,2]
[360911708,1747141567148,-356.70082847,0.00010998,2]
[360911709,1747141567177,-400.0,0.00010998,2]
[360911710,1747141567210,-400.0,0.00010998,2]
[360911711,1747141567239,-400.0,0.00010998,2]
[360911712,1747141567269,-400.0,0.00010998,2]
[360911713,1747141567303,-5203.7,0.00010998,2]
[360911714,1747141567337,-672.67,0.00010998,2]
[360911715,1747141567371,-400.0,0.00010998,2]
[360911716,1747141567407,-400.0,0.00010998,2]
[360911717,1747141567437,-9519.55,0.00010998,2]
[360911718,1747141567470,-586.7,0.00010998,2]
[360911719,1747141567501,-406.15,0.00010998,2]
[360911720,1747141567532,-894.86,0.00010998,2]
[360911721,1747141567562,-400.0,0.00010998,2]
[360911722,1747141567593,-400.0,0.00010998,2]
[360911723,1747141567625,-3292.68,0.00010998,2]
[360911724,1747141567658,-749.59,0.00010998,2]
[360911725,1747141567689,-400.0,0.00010998,2]
[360911726,1747141567720,-400.0,0.00010998,2]
[360911727,1747141567752,-4451.0,0.00010998,2]
[360911728,1747141567784,-400.0,0.00010998,2]
[360911729,1747141567815,-264.28833036,0.00010998,2]
[360911730,1747141567845,-1631.09,0.00010998,2]
[360911731,1747141567876,-400.0,0.00010998,2]
[360911732,1747141567908,-375.41088928,0.00010998,2]
[360911733,1747141567938,-1296.95,0.00010998,2]
[360911734,1747141567967,-400.0,0.00010998,2]
[360911735,1747141567997,-229.40971689,0.00010998,2]
[360911736,1747141568026,-400.0,0.00010998,2]
[360911737,1747141568054,-400.0,0.00010998,2]
[360911738,1747141568084,-267.88176905,0.00010998,2]
[360911739,1747141568113,-400.0,0.00010998,2]
[360911740,1747141568145,-275.13233932,0.00010998,2]
[360911741,1747141568176,-280.86851802,0.00010998,2]
[360911742,1747141568210,-400.0,0.00010998,2]
[360911743,1747141568240,-400.0,0.00010998,2]
[360911744,1747141568271,-315.54171225,0.00010998,2]
[360911745,1747141568307,-400.0,0.00010998,2]
[360911746,1747141568336,-400.0,0.00010998,2]
[360911747,1747141568367,-1317.68,0.00010998,2]
[360911748,1747141568398,-400.0,0.00010998,2]
[360911749,1747141568426,-412.76794232,0.00010998,2]
[360911750,1747141568455,-400.0,0.00010998,2]
[360911751,1747141568484,-400.0,0.00010998,2]
[360911752,1747141568514,-400.0,0.00010998,2]
[360911753,1747141568543,-400.0,0.00010998,2]
[360911754,1747141568573,-406.89838808,0.00010998,2]
[360911755,1747141568603,-400.0,0.00010998,2]
[360911756,1747141568634,-400.0,0.00010998,2]
[360911757,1747141568664,-400.0,0.00010998,2]
[360911758,1747141568695,-400.0,0.00010998,2]
[360911759,1747141568724,-478.71,0.00010998,2]
[360911760,1747141568753,-400.0,0.00010998,2]
[360911761,1747141568782,-941.82,0.00010998,2]
[360911762,1747141568811,-400.0,0.00010998,2]
[360911763,1747141568840,-400.0,0.00010998,2]
[360911764,1747141568868,-400.0,0.00010998,2]
[360911765,1747141568898,-400.0,0.00010998,2]
[360911766,1747141568928,-400.0,0.00010998,2]
[360911767,1747141568958,-400.0,0.00010998,2]
[360911768,1747141568986,-400.0,0.00010998,2]
[360911769,1747141569015,-604.83,0.00010998,2]
[360911770,1747141569043,-400.0,0.00010998,2]
[360911771,1747141569072,-400.0,0.00010999,2]
[360911772,1747141569102,-400.0,0.00010999,2]
[360911773,1747141569269,-400.0,0.00010999,2]
[360911774,1747141569302,-400.0,0.00010999,2]
[360911775,1747141569331,-1128.74,0.00010999,2]
[360911776,1747141569361,-400.0,0.00010999,2]
[360911777,1747141569391,-1783.37,0.00010999,2]
[360911778,1747141569419,-400.0,0.00010999,2]
[360911779,1747141569447,-400.0,0.00010999,2]
[360911780,1747141569476,-325.48210671,0.00010999,2]
[360911781,1747141569505,-400.0,0.00010999,2]
[360911782,1747141569535,-400.0,0.00010999,2]
[360911783,1747141569564,-400.0,0.00010999,2]
[360911784,1747141569594,-400.0,0.00010999,2]
[360911785,1747141569624,-400.0,0.00010999,2]
[360911786,1747141569657,-400.0,0.00010999,2]
[360911787,1747141569686,-500.0,0.00010999,2]
[360911788,1747141569714,-500.0,0.00010999,2]
[360911789,1747141569743,-500.0,0.00010999,2]
[360911790,1747141569770,-500.0,0.00010999,2]
[360911791,1747141569798,-521.86196411,0.00010999,2]
[360911792,1747141569826,-638.43,0.00010999,2]
[360911793,1747141569854,-400.0,0.00010999,2]
[360911794,1747141569885,-1108.33,0.00010999,2]
[360911795,1747141569914,-707.23,0.00010999,2]
[360911796,1747141569943,-400.0,0.00010999,2]
[360911797,1747141569971,-400.0,0.00010999,2]
[360911798,1747141570000,-422.4,0.00010999,2]
[360911799,1747141570029,-400.0,0.00010999,2]
[360911800,1747141570057,-442.58,0.00010999,2]
[360911801,1747141570086,-400.0,0.00010999,2]
[360911802,1747141570115,-400.0,0.00010999,2]
[360911803,1747141570147,-400.0,0.00010999,2]
[360911804,1747141570176,-400.0,0.00010999,2]
[360911805,1747141570208,-400.0,0.00010999,2]
[360911806,1747141570238,-400.0,0.00010999,2]
[360911807,1747141570267,-400.0,0.00010999,2]
[360911808,1747141570298,-400.0,0.00010999,2]
[360911809,1747141570328,-400.0,0.00010999,2]
[360911810,1747141570359,-400.0,0.00010999,2]
[360911811,1747141570389,-1050.52,0.00010999,2]
[360911812,1747141570420,-427.12,0.00010999,2]
[360911813,1747141570450,-400.0,0.00010999,2]
[360911814,1747141570480,-400.0,0.00010999,2]
[360911815,1747141570510,-400.0,0.00010999,2]
[360911816,1747141570540,-400.0,0.00010999,2]
[360911817,1747141570571,-400.0,0.00010999,2]
[360911818,1747141570600,-400.0,0.00010999,2]
[360911819,1747141570634,-400.0,0.00010999,2]
[360911820,1747141570664,-1085.78,0.00010999,2]
[360911821,1747141570695,-400.0,0.00010999,2]
[360911822,1747141570726,-400.0,0.00010999,2]
[360911823,1747141570755,-400.0,0.00010999,2]
[360911824,1747141570786,-522.54,0.00010999,2]
[360911825,1747141570818,-400.0,0.00010999,2]
[360911826,1747141570848,-400.0,0.00010999,2]
[360911827,1747141570876,-2241.0,0.00010999,2]
[360911828,1747141570909,-400.0,0.00010999,2]
[360911829,1747141570938,-494.93,0.00010999,2]
[360911830,1747141570967,-714.43,0.00010999,2]
[360911831,1747141570997,-400.0,0.00010999,2]
[360911832,1747141571026,-400.0,0.00010999,2]
[360911833,1747141571055,-2278.92,0.00010999,2]
[360911834,1747141571084,-400.0,0.00010999,2]
[360911835,1747141571113,-400.0,0.00010999,2]
[360911836,1747141571144,-1549.44,0.00010999,2]
[360911837,1747141571173,-400.0,0.00010999,2]
[360911838,1747141571204,-2038.25,0.00010999,2]
[360911839,1747141571241,-1810.93,0.00010999,2]
[360911840,1747141571274,-3150.7,0.00010999,2]
[360911841,1747141571307,-400.0,0.00010999,2]
[360911842,1747141571337,-436.19,0.00010999,2]
[360911843,1747141571368,-493.7,0.00010999,2]
[360911844,1747141571400,-400.0,0.00010999,2]
[360911845,1747141571430,-670.24,0.00010999,2]
[360911846,1747141571461,-1176.95,0.00010999,2]
[360911847,1747141571629,-728.83,0.00010999,2]
[360911848,1747141571666,-594.32,0.00010999,2]
[360911849,1747141571701,-1489.42,0.00010999,2]
[360911850,1747141571734,-400.0,0.00010999,2]
[360911851,1747141571764,-257.15714665,0.00010999,2]
[360911852,1747141571794,-788.95,0.00010999,2]
[360911853,1747141571823,-400.0,0.00010999,2]
[360911854,1747141571855,-400.0,0.00010999,2]
[360911855,1747141571887,-1600.45,0.00010999,2]
[360911856,1747141571917,-582.68,0.00010999,2]
[360911857,1747141571947,-260.92600173,0.00010999,2]
[360911858,1747141571976,-883.22,0.00010999,2]
[360911859,1747141572005,-400.0,0.00010999,2]
[360911860,1747141572034,-400.0,0.00010999,2]
[360911861,1747141572067,-500.0,0.00010999,2]
[360911862,1747141572098,-500.0,0.00010999,2]
[360911863,1747141572127,-500.0,0.00010999,2]
[360911864,1747141572158,-400.0,0.00010999,2]
[360911865,1747141572187,-500.0,0.00010999,2]
[360911866,1747141572224,-500.0,0.00010999,2]
[360911867,1747141572255,-500.0,0.00010999,2]
[360911868,1747141572285,-500.0,0.00010999,2]
[360911869,1747141572316,-500.0,0.00010999,2]
[360911870,1747141572346,-500.0,0.00010999,2]
[360911871,1747141572377,-400.0,0.00010999,2]
[360911872,1747141572410,-500.0,0.00010999,2]
[360911873,1747141572441,-500.0,0.00010999,2]
[360911874,1747141572471,-500.0,0.00010999,2]
[360911875,1747141572500,-500.0,0.00010999,2]
[360911876,1747141572529,-500.0,0.00010999,2]
[360911877,1747141572559,-543.65290504,0.00010999,2]
[360911878,1747141572589,-2541.83,0.00010999,2]
[360911879,1747141572619,-400.0,0.00010999,2]
[360911880,1747141572653,-436.17,0.00010999,2]
[360911881,1747141572685,-1119.46,0.00010999,2]
[360911882,1747141572716,-400.0,0.00010999,2]
[360911883,1747141572746,-433.87340998,0.00010999,2]
[360911884,1747141572777,-400.0,0.00010999,2]
[360911885,1747141572809,-529.65,0.00010999,2]
[360911886,1747141572839,-995.67,0.00010999,2]
[360911887,1747141572873,-400.0,0.00010999,2]
[360911888,1747141572910,-1759.11,0.00010999,2]
[360911889,1747141572941,-400.0,0.00010999,2]
[360911890,1747141572972,-400.0,0.00010999,2]
[360911891,1747141573001,-400.0,0.00010999,2]
[360911892,1747141573031,-400.0,0.00010999,2]
[360911893,1747141573061,-400.0,0.00010999,2]
[360911894,1747141573091,-400.0,0.00010999,2]
[360911895,1747141573120,-2219.39,0.00010999,2]
[360911896,1747141573150,-2692.55,0.00010999,2]
[360911897,1747141573179,-400.0,0.00010999,2]
[360911898,1747141573214,-1479.07,0.00010999,2]
[360911899,1747141573244,-165.06841818,0.00010999,2]
[360911900,1747141573273,-467.32251442,0.00010999,2]
[360911901,1747141573304,-817.82,0.00010999,2]
[360911902,1747141573333,-187.10012436,0.00010999,2]
[360911903,1747141573365,-2756.5,0.00010999,2]
[360911904,1747141573395,-400.0,0.00010999,2]
[360911905,1747141573424,-400.0,0.00010999,2]
[360911906,1747141573457,-400.0,0.00010999,2]
[360911907,1747141573488,-400.0,0.00010999,2]
[360911908,1747141573521,-400.0,0.00010999,2]
[360911909,1747141573551,-3375.33,0.00010999,2]
[360911910,1747141573580,-400.0,0.00010999,2]
[360911911,1747141573610,-509.96,0.00010999,2]
[360911912,1747141573642,-400.0,0.00010999,2]
[360911913,1747141573673,-1223.44,0.00010999,2]
[360911914,1747141573704,-409.57,0.00010999,2]
[360911915,1747141573736,-400.0,0.00010999,2]
[360911916,1747141573766,-2124.79,0.00010999,2]
[360911917,1747141573797,-497.48,0.00010999,2]
[360911918,1747141573828,-645.65,0.00010999,2]
[360911919,1747141574016,-1357.55,0.00010999,2]
[360911920,1747141574061,-3097.07,0.00010999,2]
[360911921,1747141574095,-1078.85,0.00010999,2]
[360911922,1747141574128,-400.0,0.00010999,2]
[360911923,1747141574164,-2170.04,0.00010999,2]
[360911924,1747141574196,-400.0,0.00010999,2]
[360911925,1747141574237,-972.06,0.00010999,2]
[360911926,1747141574273,-400.0,0.00010999,2]
[360911927,1747141574312,-621.78,0.00010999,2]
[360911928,1747141574348,-5946.28,0.00010999,2]
[360911929,1747141574385,-576.89,0.00010999,2]
[360911930,1747141574424,-400.0,0.00010999,2]
[360911931,1747141574456,-400.0,0.00010999,2]
[360911932,1747141574488,-786.12,0.00010999,2]
[360911933,1747141574521,-400.0,0.00010999,2]
[360911934,1747141574554,-400.0,0.00010999,2]
[360911935,1747141574585,-1610.31,0.00010999,2]
[360911936,1747141574617,-1368.72,0.00010999,2]
[360911937,1747141574650,-2222.66,0.00010999,2]
[360911938,1747141574683,-400.0,0.00010999,2]
[360911939,1747141574720,-2662.55,0.00010999,2]
[360911940,1747141574761,-802.26,0.00010999,2]
[360911941,1747141574791,-416.29,0.00010999,2]
[360911942,1747141574822,-400.0,0.00010999,2]
[360911943,1747141574853,-796.08,0.00010999,2]
[360911944,1747141574882,-1193.59,0.00010999,2]
[360911945,1747141574914,-400.0,0.00010999,2]
[360911946,1747141574945,-400.0,0.00010999,2]
[360911947,1747141574977,-400.0,0.00010999,2]
[360911948,1747141575007,-1635.81,0.00010999,2]
[360911949,1747141575039,-1574.85,0.00010999,2]
[360911950,1747141575069,-1062.83,0.00010999,2]
[360911951,1747141575100,-400.0,0.00010999,2]
[360911952,1747141575130,-400.0,0.00010999,2]
[360911953,1747141575165,-1389.44,0.00010999,2]
[360911954,1747141575195,-851.39,0.00010999,2]
[360911955,1747141575227,-644.31,0.00010999,2]
[360911956,1747141575257,-524.28,0.00010999,2]
[360911957,1747141575287,-400.0,0.00010999,2]
[360911958,1747141575316,-505.71,0.00010999,2]
[360911959,1747141575347,-400.0,0.00010999,2]
[360911960,1747141575379,-400.0,0.00010999,2]
[360911961,1747141575412,-400.0,0.00010999,2]
[360911962,1747141575442,-400.0,0.00010999,2]
[360911963,1747141575474,-876.65,0.00010999,2]
[360911964,1747141575505,-400.0,0.00010999,2]
[360911965,1747141575535,-1484.79,0.00010999,2]
[360911966,1747141575564,-400.0,0.00010999,2]
[360911967,1747141575594,-536.69,0.00010999,2]
[360911968,1747141575624,-1755.53,0.00010999,2]
[360911969,1747141575656,-771.33,0.00010999,2]
[360911970,1747141575690,-918.25,0.00010999,2]
[360911971,1747141575720,-400.0,0.00010999,2]
[360911972,1747141575752,-199.80794031,0.00010999,2]
[360911973,1747141575785,-819.67,0.00010999,2]
[360911974,1747141575816,-400.0,0.00010999,2]
[360911975,1747141575846,-400.0,0.00010999,2]
[360911976,1747141575878,-400.0,0.00010999,2]
[360911977,1747141575912,-400.0,0.00010999,2]
[360911978,1747141575941,-1231.43,0.00010999,2]
[360911979,1747141575973,-400.0,0.00010999,2]
[360911980,1747141576004,-400.0,0.00010999,2]
[360911981,1747141576034,-400.0,0.00010999,2]
[360911982,1747141576064,-400.0,0.00010999,2]
[360911983,1747141576096,-3478.93,0.00010999,2]
[360911984,1747141576126,-1138.68,0.00010999,2]
[360911985,1747141576160,-400.0,0.00010999,2]
[360911986,1747141576190,-400.0,0.00010999,2]
[360911987,1747141576223,-12407.85,0.00010999,2]
[360911988,1747141576404,-400.0,0.00010999,2]
[360911989,1747141576436,-597.37,0.00010999,2]
[360911990,1747141576468,-536.7,0.00010999,2]
[360911991,1747141576500,-668.68,0.00010999,2]
[360911992,1747141576529,-500.0,0.00010999,2]
[360911993,1747141576558,-501.06110601,0.00010999,2]
[360911994,1747141576586,-400.0,0.00010999,2]
[360911995,1747141576616,-1370.28,0.00010999,2]
[360911996,1747141576651,-769.61,0.00010999,2]
[360911997,1747141576687,-400.0,0.00010999,2]
[360911998,1747141576721,-2894.28,0.00010999,2]
[360911999,1747141576755,-400.0,0.00010999,2]
[360912000,1747141576786,-400.0,0.00010999,2]
[360912001,1747141576818,-729.0,0.00010999,2]
[360912002,1747141576849,-697.48,0.00010999,2]
[360912003,1747141576878,-400.0,0.00010999,2]
[360912004,1747141576910,-400.0,0.00010999,2]
[360912005,1747141576942,-400.0,0.00010999,2]
[360912006,1747141576973,-685.66,0.00010999,2]
[360912007,1747141577004,-589.44,0.00010999,2]
[360912008,1747141577034,-521.54,0.00010999,2]
[360912009,1747141577064,-828.37,0.00010999,2]
[360912010,1747141577096,-545.81,0.00010999,2]
[360912011,1747141577125,-400.0,0.00010999,2]
[360912012,1747141577156,-1105.47,0.00010999,2]
[360912013,1747141577184,-400.0,0.00010999,2]
[360912014,1747141577213,-400.0,0.00010999,2]
[360912015,1747141577243,-663.65,0.00010999,2]
[360912016,1747141577273,-2557.29,0.00010999,2]
[360912017,1747141577306,-1483.31,0.00010999,2]
[360912018,1747141577338,-400.0,0.00010999,2]
[360912019,1747141577372,-400.0,0.00010999,2]
[360912020,1747141577403,-1772.09,0.00010999,2]
[360912021,1747141577446,-400.0,0.00010999,2]
[360912022,1747141577505,-113609.37491584,0.00011,2]
[360912023,1747141577557,-268.06465187,0.00011,2]
[360912024,1747141577612,-50388.26793323,0.00011,2]
[360912869,1747141710592,1282.994,0.00028,120]
[360913312,1747141794150,-300.0,8.439e-05,2]
[360913313,1747141794172,-150.0,8.439e-05,2]
[360913314,1747141794201,-500.0,8.44e-05,2]
[360913315,1747141794229,-500.0,8.44e-05,2]
[360913316,1747141794259,-500.0,8.44e-05,2]
[360913317,1747141794292,-500.0,8.44e-05,2]
[360913318,1747141794324,-500.0,8.44e-05,2]
[360913319,1747141794357,-500.0,8.44e-05,2]
[360913320,1747141794387,-500.0,8.44e-05,2]
[360913321,1747141794416,-500.0,8.44e-05,2]
[360913322,1747141794444,-390.30041852,8.44e-05,2]
[360913323,1747141794473,-500.0,8.44e-05,2]
[360913324,1747141794502,-500.0,8.44e-05,2]
[360913325,1747141794531,-500.0,8.44e-05,2]
[360913326,1747141794562,-500.0,8.44e-05,2]
[360913327,1747141794598,-500.0,8.44e-05,2]
[360913328,1747141794622,-513.01958148,8.441e-05,2]
[360913336,1747141832155,-420.68212066,8.441e-05,2]
[360913337,1747141832174,-216.32829786,8.441e-05,2]
[360913338,1747141832184,-498.901774,9.236e-05,2]
[360913339,1747141832193,-255.0,9.283e-05,2]
[360913340,1747141832203,-886.11564126,9.613e-05,2]
[360913341,1747141832220,-2575.32435874,9.613e-05,2]
[360913342,1747141832228,-178.5,9.808e-05,2]
[360913344,1747141832237,-250.0,9.816e-05,2]
[360913346,1747141832247,-1200.0,0.000102,3]
[360913348,1747141832256,-1200.0,0.00010211,2]
[360913349,1747141832265,-433.0,0.00010212,2]
[360913350,1747141832274,-300.0,0.00010277,2]
[360913351,1747141832285,-4433.32,0.00010278,2]
[360913352,1747141832298,-2400.0,0.000103,3]
[360913353,1747141832307,-250.0,0.00010305,2]
[360913354,1747141832316,-3600.0,0.000104,3]
[360913355,1747141832325,-471.0,0.00010422,2]
[360913356,1747141832334,-4800.0,0.000105,3]
[360913357,1747141832343,-250.0,0.00010574,2]
[360913358,1747141832352,-6000.0,0.000106,3]
[360913359,1747141832361,-1200.0,0.000107,3]
[360913360,1747141832371,-1150.03,0.00010705,2]
[360913361,1747141832381,-250.0,0.00010721,2]
[360913362,1747141832390,-2506.01441521,0.000108,2]
[360913363,1747141832399,-1200.0,0.000108,3]
[360913364,1747141832408,-214.92364347,0.000109,2]
[360913365,1747141832625,-322.64149842,0.000109,2]
[360913366,1747141832634,-1200.0,0.000109,3]
[360913367,1747141832644,-153.97656905,0.000109,2]
[360913368,1747141832653,-153.97656905,0.000109,2]
[360913369,1747141832662,-156.61099871,0.000109,2]
[360913370,1747141832671,-2236.75845198,0.000109,2]
[360913371,1747141832681,-153.97656905,0.000109,2]
[360913372,1747141832690,-1841.42790332,0.000109,2]
[360913373,1747141832699,-214.92364347,0.00010929,2]
[360913374,1747141832709,-4623.1521963,0.00010987,2]
[360913375,1747141832718,-290.37,0.00010988,2]
[360913376,1747141832727,-290.37,0.00010988,2]
[360913377,1747141832736,-290.37,0.00010988,2]
[360913378,1747141832746,-290.37,0.00010988,2]
[360913379,1747141832755,-290.37,0.00010989,2]
[360913380,1747141832764,-290.37,0.00010989,2]
[360913381,1747141832773,-290.37,0.00010989,2]
[360913382,1747141832783,-290.37,0.00010989,2]
[360913383,1747141832792,-290.37,0.0001099,2]
[360913384,1747141832802,-290.37,0.0001099,2]
[360913385,1747141832811,-340.04480696,0.0001099,2]
[360913386,1747141832820,-340.04480696,0.0001099,2]
[360913387,1747141832829,-340.04480696,0.0001099,2]
[360913388,1747141832839,-1504.51,0.00010997,2]
[360913389,1747141832850,-400.0,0.00010997,2]
[360913390,1747141832859,-400.0,0.00010997,2]
[360913391,1747141832868,-400.0,0.00010997,2]
[360913392,1747141832877,-400.0,0.00010997,2]
[360913393,1747141832886,-400.0,0.00010997,2]
[360913394,1747141832895,-400.0,0.00010997,2]
[360913395,1747141832904,-1310.92,0.00010997,2]
[360913396,1747141832913,-400.0,0.00010997,2]
[360913397,1747141832922,-400.0,0.00010997,2]
[360913398,1747141832931,-404.94618771,0.00010997,2]
[360913399,1747141832941,-400.0,0.00010997,2]
[360913400,1747141832950,-400.0,0.00010997,2]
[360913401,1747141832959,-466.16815826,0.00010997,2]
[360913402,1747141832968,-400.0,0.00010997,2]
[360913403,1747141832977,-400.0,0.00010997,2]
[360913404,1747141832986,-400.0,0.00010997,2]
[360913405,1747141832995,-218.46996446,0.00010997,2]
[360913406,1747141833006,-400.0,0.00010997,2]
[360913407,1747141833015,-400.0,0.00010997,2]
[360913408,1747141833024,-400.0,0.00010997,2]
[360913409,1747141833034,-400.0,0.00010997,2]
[360913410,1747141833043,-400.0,0.00010997,2]
[360913411,1747141833053,-735.49,0.00010997,2]
[360913412,1747141833063,-400.0,0.00010997,2]
[360913413,1747141833072,-400.0,0.00010997,2]
[360913414,1747141833081,-2423.2,0.00010997,2]
[360913415,1747141833091,-400.82,0.00010997,2]
[360913416,1747141833103,-400.0,0.00010997,2]
[360913417,1747141833112,-400.0,0.00010997,2]
[360913418,1747141833122,-648.95,0.00010997,2]
[360913419,1747141833132,-499.46,0.00010997,2]
[360913420,1747141833141,-500.77,0.00010997,2]
[360913421,1747141833150,-400.0,0.00010997,2]
[360913422,1747141833159,-420.35568803,0.00010997,2]
[360913423,1747141833169,-400.0,0.00010997,2]
[360913424,1747141833178,-400.0,0.00010997,2]
[360913425,1747141833188,-400.0,0.00010997,2]
[360913426,1747141833197,-400.0,0.00010997,2]
[360913427,1747141833206,-400.0,0.00010997,2]
[360913428,1747141833215,-400.0,0.00010997,2]
[360913429,1747141833225,-400.0,0.00010997,2]
[360913430,1747141833234,-507.18303721,0.00010997,2]
[360913431,1747141833243,-400.0,0.00010997,2]
[360913432,1747141833252,-400.0,0.00010997,2]